fUSD/lending_fUSD_20260409
["ID","MTS","AMOUNT","RATE_DAILY","PERIOD"]
[420150277,1775728232232,-1116.0,0.00010041,2]
[420150278,1775728232241,-268.75,0.00010256,2]
[420150280,1775728232251,-500.0,0.00010321,2]
[420150281,1775728232261,-389.17525049,0.0001045,2]
[420150283,1775728232270,-500.51505804,0.0001045,2]
[420150285,1775728232279,-207.55648239,0.00010482,2]
[420150286,1775728232289,-250.0,0.00010532,2]
[420150287,1775728232299,-268.75,0.00010541,2]
[420150288,1775728232309,-1116.0,0.00010569,2]
[420150289,1775728232319,-255.0,0.00010669,2]
[420150290,1775728232328,-164.35,0.00010673,2]
[420150291,1775728232338,-150.0,0.000107,2]
[420150292,1775728232348,-500.0,0.00010735,2]
[420150293,1775728232358,-2835.7,0.00010735,2]
[420150294,1775728232367,-2835.7,0.00010735,2]
[420150295,1775728232377,-590.97081938,0.00010748,2]
[420150296,1775728232387,-268.75,0.00010826,2]
[420150297,1775728232397,-537.15264958,0.00010919,2]
[420150298,1775728232407,-500.0,0.00010959,2]
[420150299,1775728232416,-1817.05,0.00010959,2]
[420150300,1775728232425,-5526.12224416,0.00011045,2]
[420150301,1775728232436,-500.0,0.00011098,2]
[420150302,1775728232446,-12538.18350417,0.00011099,2]
[420150303,1775728232455,-12538.18350417,0.00011099,2]
[420150304,1775728232465,-22220.59788102,0.00011099,2]
[420150305,1775728232474,-22220.59788102,0.00011099,2]
[420150306,1775728232484,-500.0,0.00011123,2]
[420150307,1775728232493,-1116.0,0.00011126,2]
[420150308,1775728232503,-20875.34076615,0.00011147,2]
[420150309,1775728232515,-1345.25711487,0.00011147,2]
[420150310,1775728232524,-8699.64482596,0.00011147,2]
[420150311,1775728232536,-3838.53867821,0.00011147,2]
[420150312,1775728232546,-150.0,0.0001121,2]
[420150313,1775728232556,-500.0,0.00011372,2]
[420150314,1775728232565,-500.0,0.00011562,2]
[420150315,1775728232575,-500.0,0.00011646,2]
[420150316,1775728232585,-1116.0,0.00011711,2]
[420150317,1775728232595,-433.0,0.00011736,2]
[420150318,1775728232605,-3641.3346,0.00011753,2]
[420150319,1775728232615,-22220.59788102,0.00011785,2]
[420150320,1775728232624,-12538.18350417,0.00011785,2]
[420150321,1775728232634,-164.35,0.00011858,2]
[420150322,1775728232644,-500.0,0.000119,4]
[420150323,1775728232653,-160.0,0.00011975,2]
[420150324,1775728232662,-356.73,0.00012087,2]
[420150325,1775728232671,-1481.75,0.00012087,2]
[420150326,1775728232681,-1274.63788321,0.00012087,2]
[420150327,1775728232693,-1254.41808677,0.00012087,2]
[420150328,1775728238001,-1812.04403002,0.00012087,2]
[420150329,1775728238010,-28026.64,0.00012087,2]
[420150330,1775728238019,-299.99,0.00012087,2]
[420150331,1775728238029,-1550.53,0.00012087,2]
[420150332,1775728238038,-1267.55,0.00012087,2]
[420150333,1775728238047,-3297.3,0.00012087,2]
[420150334,1775728238057,-150.99,0.00012087,2]
[420150335,1775728238066,-4999.99,0.00012087,2]
[420150336,1775728238076,-9999.99,0.00012087,2]
[420150337,1775728238085,-3000.96,0.00012087,2]
[420150338,1775728238094,-173.0641,0.000121,2]
[420150339,1775728238103,-150.0,0.00012233,2]
[420150340,1775728238113,-1116.0,0.00012328,2]
[420150341,1775728238123,-500.0,0.0001238,2]
[420150342,1775728238133,-500.0,0.0001238,2]
[420150343,1775728238142,-22220.59788102,0.00012422,2]
[420150344,1775728238151,-12538.18350417,0.00012422,2]
[420150345,1775728238160,-1852.42,0.00012442,2]
[420150346,1775728238170,-601.3376128,0.00012612,2]
[420150347,1775728238179,-174.61919141,0.00012612,2]
[420150348,1775728238189,-1191.11104075,0.00012612,2]
[420150349,1775728238198,-578.20924308,0.00012612,2]
[420150350,1775728238207,-200.0,0.00012612,2]
[420150351,1775728238217,-500.0,0.00012612,2]
[420150352,1775728238226,-278.94700606,0.00012612,2]
[420150353,1775728238235,-7965.41053268,0.00012612,2]
[420150354,1775728238245,-743.50770149,0.00012612,2]
[420150355,1775728238254,-151.0,0.00012612,2]
[420150356,1775728238264,-181.08010149,0.00012612,2]
[420150357,1775728238273,-181.08010149,0.00012612,2]
[420150358,1775728238282,-931.70040429,0.00012612,2]
[420150359,1775728238292,-174.61919141,0.00012612,2]
[420150360,1775728238301,-170.0,0.00012612,2]
[420150361,1775728238311,-170.0,0.00012612,2]
[420150362,1775728238321,-170.0,0.00012612,2]
[420150363,1775728238330,-170.0,0.00012612,2]
[420150364,1775728238340,-170.0,0.00012612,2]
[420150365,1775728238350,-170.0,0.00012612,2]
[420150366,1775728238359,-170.0,0.00012612,2]
[420150367,1775728238370,-578.20924308,0.00012612,2]
[420150368,1775728238380,-170.0,0.00012612,2]
[420150369,1775728238389,-250.0,0.00012651,2]
[420150370,1775728238398,-28846.51,0.00012663,2]
[420150371,1775728238408,-500.0,0.00012667,2]
[420150372,1775728238417,-8260.13072239,0.00012667,2]
[420150373,1775728238426,-151.0,0.00012667,2]
[420150374,1775728238436,-500.0,0.00012722,2]
[420150375,1775728238445,-151.0,0.00012722,2]
[420150376,1775728238455,-1047.0,0.00012889,2]
[420150377,1775728238464,-3524.0,0.00012889,2]
[420150378,1775728238473,-622.0,0.00012889,2]
[420150379,1775728238483,-150.0,0.00012889,2]
[420150380,1775728238493,-1218.0,0.00012889,2]
[420150381,1775728238503,-1264.0,0.00012889,2]
[420150382,1775728238512,-926.0,0.00012889,2]
[420150383,1775728238521,-150.0,0.00012889,2]
[420150384,1775728238530,-3773.0,0.00012889,2]
[420150385,1775728238540,-150.0,0.00012889,2]
[420150386,1775728238549,-6023.0,0.00012889,2]
[420150387,1775728238559,-151.0,0.0001289,2]
[420150388,1775728238568,-878.76,0.00012893,2]
[420150389,1775728238577,-736.0,0.00012909,2]
[420150390,1775728238587,-5000.0,0.00012921,2]
[420150391,1775728238597,-1003.06611839,0.00012928,2]
[420150392,1775728238606,-1116.0,0.00012944,2]
[420150394,1775728238616,-164.35,0.00013044,2]
[420150395,1775728238625,-22220.59788102,0.0001306,2]
[420150397,1775728238634,-12538.18350417,0.0001306,2]
[420150399,1775728238644,-503.0,0.0001311,2]
[420150401,1775728238654,-1817.05,0.00013122,2]
[420150403,1775728238663,-1235.18214925,0.0001316,2]
[420150405,1775728238672,-200.0,0.0001316,2]
[420150407,1775728238682,-620.0,0.0001316,2]
[420150409,1775728238691,-181.08010149,0.0001316,2]
[420150411,1775728238700,-500.00000001,0.0001316,2]
[420150413,1775728238709,-878.76,0.00013167,2]
[420150415,1775728238719,-1459.731903,0.00013274,2]
[420150417,1775728238732,-199.6746,0.000134,2]
[420150419,1775728238741,-3000.0,0.00013408,2]
[420150421,1775728238751,-192.7051737,0.00013412,2]
[420150423,1775728238761,-257.415797,0.00013423,2]
[420150425,1775728238770,-168.044876,0.00013424,2]
[420150427,1775728238779,-214.255825,0.00013424,2]
[420150429,1775728238789,-199.692255,0.00013425,2]
[420150431,1775728238798,-276.18915,0.00013425,2]
[420150433,1775728238808,-398.708995,0.00013425,2]
[420150435,1775728238817,-878.76,0.00013441,2]
[420150437,1775728238826,-336.48389435,0.00013511,2]
[420150439,1775728238835,-500.0,0.00013511,2]
[420150441,1775728238844,-500.0,0.00013511,2]
[420150443,1775728238854,-171.27019488,0.00013511,2]
[420150445,1775728238864,-500.0,0.00013511,2]
[420150447,1775728238873,-500.0,0.00013511,2]
[420150449,1775728238882,-500.0,0.00013511,2]
[420150451,1775728238892,-609.05064319,0.00013511,2]
[420150453,1775728238901,-500.0,0.00013511,2]
[420150455,1775728238910,-336.18736322,0.00013511,2]
[420150457,1775728238920,-201293.403357,0.00013512,2]
[420150459,1775728238929,-3962.9673267,0.00013512,2]
[420150461,1775728238939,-1116.0,0.00013591,2]
[420150463,1775728238947,-1200.0,0.00013682,2]
[420150465,1775728238956,-22220.59788102,0.00013697,2]
[420150467,1775728238965,-12538.18350417,0.00013697,2]
[420150469,1775728238975,-502.00598187,0.00013698,2]
[420150471,1775728238984,-500.0,0.00013698,2]
[420150473,1775728238994,-500.0,0.00013698,2]
[420150475,1775728239003,-500.0,0.00013698,2]
[420150477,1775728239012,-500.0,0.00013698,2]
[420150479,1775728239022,-500.0,0.00013698,2]
[420150481,1775728239031,-500.0,0.00013698,2]
[420150483,1775728239040,-500.0,0.00013698,2]
[420150485,1775728239049,-500.0,0.00013698,2]
[420150487,1775728239058,-500.0,0.00013698,2]
[420150489,1775728239068,-500.0,0.00013698,2]
[420150492,1775728239077,-500.0,0.00013698,2]
[420150494,1775728239086,-500.0,0.00013698,2]
[420150496,1775728239095,-500.0,0.00013698,2]
[420150498,1775728239105,-500.0,0.00013698,2]
[420150500,1775728239115,-541.4,0.00013698,2]
[420150502,1775728239125,-150.0,0.00013699,2]
[420150504,1775728239134,-200.0,0.00013699,2]
[420150506,1775728239143,-235.00664425,0.00013699,2]
[420150508,1775728239152,-369.26191,0.00013699,2]
[420150510,1775728239162,-500.0,0.00013699,2]
[420150512,1775728239171,-500.0,0.00013699,2]
[420150513,1775728239180,-500.0,0.00013699,2]
[420150515,1775728239190,-500.0,0.00013699,2]
[420150517,1775728239199,-500.0,0.00013699,2]
[420150519,1775728239208,-500.0,0.00013699,2]
[420150521,1775728239218,-500.0,0.00013699,2]
[420150522,1775728239230,-500.0,0.00013699,2]
[420150523,1775728239239,-500.0,0.00013699,2]
[420150524,1775728239249,-500.0,0.00013699,2]
[420150525,1775728239258,-500.0,0.00013699,2]
[420150526,1775728239267,-503.84430142,0.00013699,2]
[420150527,1775728239276,-500.0,0.00013699,2]
[420150528,1775728239286,-414.0,0.00013699,2]
[420150529,1775728239295,-414.0,0.00013699,2]
[420150530,1775728239304,-552.13551218,0.00013699,2]
[420150531,1775728239315,-150.77,0.00013699,2]
[420150532,1775728239324,-551.0,0.00013699,2]
[420150533,1775728239333,-152.16340629,0.00013699,2]
[420150534,1775728239343,-150.0,0.00013699,2]
[420150535,1775728239352,-9933.84252618,0.00013699,2]
[420150536,1775728239362,-150.0,0.00013699,2]
[420150537,1775728239371,-14237.65312879,0.00013699,2]
[420150538,1775728239380,-150.0,0.00013699,2]
[420150539,1775728239390,-83489.18821282,0.00013699,2]
[420150540,1775728239400,-1280.88388878,0.00013708,2]
[420150541,1775728239409,-200.0,0.00013708,2]
[420150542,1775728239419,-187.78006525,0.00013708,2]
[420150543,1775728239428,-878.76,0.00013715,2]
[420150544,1775728239438,-500.0,0.00013774,2]
[420150545,1775728239448,-500.0,0.00013774,2]
[420150546,1775728239457,-500.0,0.00013774,2]
[420150547,1775728239467,-500.0,0.00013774,2]
[420150548,1775728239476,-500.0,0.00013774,2]
[420150549,1775728239485,-1000.0,0.00013799,2]
[420150550,1775728239494,-1000.0,0.00013799,2]
[420150551,1775728239504,-1000.0,0.00013799,2]
[420150552,1775728239513,-1000.0,0.00013799,2]
[420150553,1775728239523,-1000.0,0.00013799,2]
[420150554,1775728239532,-1000.0,0.00013799,2]
[420150555,1775728239542,-1000.0,0.00013799,2]
[420150556,1775728239552,-1000.0,0.00013799,2]
[420150557,1775728239562,-1000.0,0.00013799,2]
[420150558,1775728239571,-398.985,0.00013799,2]
[420150559,1775728239580,-500.0,0.00013825,2]
[420150560,1775728239590,-500.0,0.00013825,2]
[420150561,1775728239599,-192.70517365,0.00013827,2]
[420150562,1775728239609,-419.0,0.0001385,2]
[420150563,1775728239619,-500.0,0.00013861,2]
[420150564,1775728239628,-1000.0,0.000139,5]
[420150565,1775728239638,-500.0,0.00013945,2]
[420150566,1775728239647,-150.0,0.00013973,2]
[420150567,1775728239657,-878.76,0.00013989,2]
[420150568,1775728239666,-209.398029,0.00014,2]
[420150569,1775728239675,-419.0,0.00014015,2]
[420150570,1775728239685,-419.0,0.00014019,2]
[420150571,1775728239694,-419.0,0.00014047,2]
[420150572,1775728239703,-419.0,0.00014048,2]
[420150573,1775728239713,-167.0,0.00014084,2]
[420150574,1775728239723,-167.0,0.00014084,2]
[420150575,1775728239732,-167.0,0.00014084,2]
[420150576,1775728239742,-167.0,0.00014084,2]
[420150577,1775728239751,-167.0,0.00014084,2]
[420150578,1775728239760,-167.0,0.00014084,2]
[420150579,1775728239770,-167.0,0.00014084,2]
[420150580,1775728239780,-185.12335472,0.00014084,2]
[420150581,1775728239791,-503.0,0.00014094,2]
[420150582,1775728239800,-181.231361,0.00014096,2]
[420150583,1775728239810,-6927.93389828,0.00014178,2]
[420150584,1775728239821,-1252.0,0.00014199,2]
[420150585,1775728239831,-306.0,0.000142,2]
[420150586,1775728239840,-1000.0,0.000142,2]
[420150587,1775728239850,-313.0,0.000142,2]
[420150588,1775728239859,-164.35,0.0001423,2]
[420150589,1775728239869,-419.0,0.00014237,2]
[420150590,1775728239878,-192.70517365,0.00014241,2]
[420150591,1775728239888,-1000.0,0.00014247,2]
[420150592,1775728239898,-1000.0,0.00014247,2]
[420150593,1775728239908,-1000.0,0.00014247,2]
[420150594,1775728239917,-150.30679996,0.00014247,2]
[420150595,1775728239927,-503.36350932,0.00014247,2]
[420150596,1775728239936,-1000.0,0.00014247,2]
[420150597,1775728239945,-931.97746533,0.00014247,2]
[420150598,1775728239955,-1328.27659266,0.00014256,2]
[420150599,1775728239964,-200.0,0.00014256,2]
[420150600,1775728239974,-194.72792766,0.00014256,2]
[420150601,1775728239983,-878.76,0.00014263,2]
[420150602,1775728239992,-500.0,0.00014265,2]
[420150603,1775728240002,-1116.0,0.00014271,2]
[420150604,1775728240011,-419.0,0.00014283,2]
[420150605,1775728240020,-419.0,0.00014323,2]
[420150606,1775728240030,-3522.811,0.00014328,2]
[420150607,1775728240039,-188.595,0.00014328,2]
[420150608,1775728240049,-161.99385538,0.00014334,2]
[420150609,1775728240058,-22220.59788102,0.00014335,2]
[420150610,1775728240067,-8901.97384245,0.00014335,2]
[420150611,1775728240081,-400.0,0.00014335,2]
[420150612,1775728240154,-1503.17647077,0.00014335,2]
[420150613,1775728240166,-1733.03319095,0.00014335,2]
[420150614,1775728240175,-1000.0,0.00014373,2]
[420150615,1775728240184,-1000.0,0.00014373,2]
[420150616,1775728240194,-986.05,0.00014384,2]
[420150617,1775728240203,-786.15,0.00014384,2]
[420150618,1775728240212,-419.0,0.00014391,2]
[420150619,1775728240222,-419.0,0.00014459,2]
[420150620,1775728240232,-152.0,0.000145,5]
[420150621,1775728240241,-419.0,0.00014519,2]
[420150622,1775728240250,-878.76,0.00014537,2]
[420150623,1775728240259,-182.18,0.00014567,2]
[420150624,1775728240269,-419.0,0.000146,2]
[420150625,1775728240278,-419.0,0.00014613,2]
[420150626,1775728240288,-421.44,0.0001463,2]
[420150627,1775728240297,-1573.0,0.00014652,2]
[420150628,1775728240307,-151.0,0.00014654,2]
[420150629,1775728240316,-192.70517365,0.00014656,2]
[420150630,1775728240325,-986.05,0.00014658,2]
[420150631,1775728240335,-786.15,0.00014658,2]
[420150632,1775728240344,-500.0,0.00014668,2]
[420150633,1775728240354,-500.0,0.00014668,2]
[420150634,1775728240363,-200.0,0.00014668,2]
[420150635,1775728240373,-419.0,0.00014672,2]
[420150636,1775728240383,-230.3768,0.000147,2]
[420150637,1775728240392,-228.09,0.00014726,2]
[420150638,1775728240402,-260.0,0.00014769,2]
[420150639,1775728240413,-3000.0,0.00014778,2]
[420150640,1775728240422,-419.0,0.0001479,2]
[420150641,1775728240432,-500.0,0.00014795,2]
[420150642,1775728240442,-316.12544249,0.00014795,2]
[420150643,1775728240451,-1500.0,0.00014795,2]
[420150644,1775728240460,-504.64587265,0.00014795,2]
[420150645,1775728240470,-647.0,0.00014799,5]
[420150646,1775728240480,-1800.64513513,0.00014799,2]
[420150647,1775728240490,-1377.42282659,0.00014804,2]
[420150648,1775728240499,-200.0,0.00014804,2]
[420150649,1775728240509,-201.93286099,0.00014804,2]
[420150650,1775728240519,-878.79,0.00014811,2]
[420150651,1775728240529,-1149.094443,0.00014819,2]
[420150652,1775728240539,-419.0,0.00014864,2]
[420150653,1775728240548,-419.0,0.00014906,2]
[420150654,1775728240558,-1500.0,0.00014921,2]
[420150655,1775728240567,-1500.0,0.00014921,2]
[420150656,1775728240576,-269.58050623,0.00014932,2]
[420150657,1775728241001,-716.46949377,0.00014932,2]
[420150658,1775728241011,-786.15,0.00014932,2]
[420150659,1775728241021,-419.0,0.00014951,2]
[420150660,1775728241030,-168.78948281,0.0001497,2]
[420150661,1775728241042,-250.21051719,0.0001497,2]
[420150662,1775728241052,-22220.59788102,0.00014972,2]
[420150663,1775728241062,-12538.18350417,0.00014972,2]
[420150664,1775728241072,-1116.0,0.00014984,2]
[420150665,1775728241082,-826.0,0.00015,2]
[420150666,1775728241091,-419.0,0.00015003,2]
[420150667,1775728241101,-1200.0,0.00015052,2]
[420150668,1775728241110,-500.0,0.00015071,2]
[420150669,1775728241120,-192.70517365,0.00015071,2]
[420150670,1775728241129,-419.0,0.00015071,2]
[420150671,1775728241139,-503.0,0.00015077,3]
[420150672,1775728241148,-419.0,0.00015093,2]
[420150673,1775728241158,-419.0,0.00015131,2]
[420150674,1775728241167,-500.0,0.00015162,2]
[420150675,1775728241177,-1500.0,0.000152,5]
[420150676,1775728241186,-288.22494804,0.00015201,2]
[420150677,1775728241196,-305.3299112,0.00015216,2]
[420150678,1775728241205,-253.10434029,0.00015216,2]
[420150679,1775728241215,-884.2575342,0.00015223,2]
[420150680,1775728241225,-419.0,0.0001523,2]
[420150681,1775728241234,-299.0,0.00015244,2]
[420150682,1775728241244,-419.0,0.0001527,2]
[420150683,1775728241253,-1000.0,0.00015272,2]
[420150684,1775728241263,-1000.0,0.00015272,2]
[420150685,1775728241272,-1817.05,0.00015285,2]
[420150686,1775728241282,-2000.0,0.000153,5]
[420150687,1775728241291,-2035.0,0.0001531,2]
[420150688,1775728241301,-1501.59977952,0.00015342,2]
[420150689,1775728241310,-623.58710448,0.00015351,2]
[420150690,1775728241320,-599.60298507,0.00015351,2]
[420150691,1775728241330,-1428.38747117,0.00015352,2]
[420150692,1775728241340,-200.0,0.00015352,2]
[420150693,1775728241349,-209.40437684,0.00015352,2]
[420150694,1775728241358,-162.0,0.0001536,2]
[420150695,1775728241368,-162.0,0.0001536,2]
[420150696,1775728241378,-12502.8611885,0.00015366,2]
[420150697,1775728241387,-2500.0,0.000154,5]
[420150698,1775728241397,-2000.0,0.00015405,2]
[420150699,1775728241406,-500.0,0.00015405,2]
[420150700,1775728241416,-2000.0,0.0001544,2]
[420150701,1775728241426,-2000.0,0.0001544,2]
[420150702,1775728241435,-2000.0,0.0001545,2]
[420150703,1775728241445,-361.65150204,0.00015456,2]
[420150704,1775728241455,-2000.0,0.00015469,2]
[420150705,1775728241464,-502.02183622,0.00015469,2]
[420150706,1775728241474,-500.0,0.00015473,2]
[420150707,1775728241483,-200.0,0.00015473,2]
[420150708,1775728241852,-1572.0,0.00015477,2]
[420150709,1775728241888,-192.70517365,0.00015485,2]
[420150710,1775728241898,-500.0,0.000155,5]
[420150711,1775728241909,-4000.0,0.00015507,2]
[420150712,1775728241918,-250.0,0.00015507,2]
[420150713,1775728241928,-361.65150204,0.00015533,2]
[420150714,1775728241939,-333.85218546,0.00015546,2]
[420150715,1775728241949,-378254.861429,0.00015556,2]
[420150716,1775728241958,-9193.66238,0.00015556,2]
[420150717,1775728241968,-175.664847,0.00015597,2]
[420150718,1775728241978,-465.82156854,0.00015599,2]
[420150719,1775728241987,-2000.0,0.00015599,2]
[420150720,1775728241998,-2000.0,0.00015599,2]
[420150721,1775728242007,-2000.0,0.00015599,2]
[420150722,1775728242018,-60589.03992695,0.000156,5]
[420150723,1775728242028,-200.0,0.000156,2]
[420150724,1775728242038,-150.0,0.000156,2]
[420150725,1775728242048,-150.0,0.000156,2]
[420150726,1775728242059,-150.0,0.000156,2]
[420150727,1775728242069,-150.0,0.000156,2]
[420150728,1775728242079,-150.0,0.000156,2]
[420150729,1775728242089,-150.0,0.000156,2]
[420150730,1775728242099,-150.0,0.000156,2]
[420150731,1775728242110,-150.0,0.000156,2]
[420150732,1775728242119,-172.31999984,0.000156,2]
[420150733,1775728242129,-150.0,0.000156,2]
[420150734,1775728242139,-150.0,0.000156,2]
[420150735,1775728242149,-150.0,0.000156,2]
[420150736,1775728242159,-1917.7092116,0.000156,2]
[420150737,1775728242168,-1917.7092116,0.000156,2]
[420150738,1775728242178,-200.95641354,0.000156,2]
[420150739,1775728242188,-150.0,0.000156,2]
[420150740,1775728242199,-150.0,0.000156,2]
[420150741,1775728242209,-1381.75918925,0.000156,2]
[420150742,1775728242219,-1381.75918925,0.000156,2]
[420150743,1775728242229,-1959.00135147,0.000156,2]
[420150744,1775728242239,-500.0,0.000156,5]
[420150745,1775728242249,-151.0,0.000156,2]
[420150746,1775728242260,-151.0,0.000156,2]
[420150747,1775728242276,-151.0,0.000156,2]
[420150748,1775728242287,-151.0,0.000156,2]
[420150749,1775728242297,-151.0,0.000156,2]
[420150750,1775728242308,-151.0,0.000156,2]
[420150751,1775728242318,-151.0,0.000156,2]
[420150752,1775728242329,-151.0,0.000156,2]
[420150753,1775728242339,-170.593914,0.000156,2]
[420150754,1775728242350,-170.593914,0.000156,2]
[420150755,1775728242360,-170.593914,0.000156,2]
[420150756,1775728242370,-170.593914,0.000156,2]
[420150757,1775728242381,-151.0,0.000156,2]
[420150758,1775728242391,-151.0,0.000156,2]
[420150759,1775728242401,-151.0,0.000156,2]
[420150760,1775728242411,-159.363601,0.000156,2]
[420150761,1775728242422,-151.0,0.000156,2]
[420150762,1775728242432,-151.0,0.000156,2]
[420150763,1775728242442,-151.0,0.000156,2]
[420150764,1775728242452,-459.342263,0.000156,2]
[420150765,1775728242463,-151.0,0.000156,2]
[420150766,1775728242473,-459.342263,0.000156,2]
[420150767,1775728242483,-209.245026,0.000156,2]
[420150768,1775728242493,-459.342263,0.000156,2]
[420150769,1775728242503,-459.342263,0.000156,2]
[420150770,1775728242514,-151.0,0.000156,2]
[420150771,1775728242524,-151.0,0.000156,2]
[420150772,1775728242534,-161.0,0.000156,3]
[420150773,1775728242544,-151.0,0.000156,2]
[420150774,1775728242555,-151.0,0.000156,2]
[420150775,1775728242565,-151.0,0.000156,2]
[420150776,1775728242575,-151.0,0.000156,2]
[420150777,1775728242584,-151.0,0.000156,2]
[420150778,1775728242594,-171.867948,0.000156,2]
[420150779,1775728242604,-468.284088,0.000156,2]
[420150780,1775728242615,-1066.870932,0.000156,2]
[420150781,1775728242625,-171.867948,0.000156,2]
[420150782,1775728242634,-151.0,0.000156,2]
[420150783,1775728242645,-468.284088,0.000156,2]
[420150784,1775728242654,-1066.870932,0.000156,2]
[420150785,1775728242665,-171.867948,0.000156,2]
[420150786,1775728242674,-151.0,0.000156,2]
[420150787,1775728242684,-468.284088,0.000156,2]
[420150788,1775728242695,-171.867948,0.000156,2]
[420150789,1775728242704,-151.0,0.000156,2]
[420150790,1775728242715,-468.284088,0.000156,2]
[420150791,1775728242724,-151.0,0.000156,2]
[420150792,1775728242734,-1066.870932,0.000156,2]
[420150793,1775728242744,-151.0,0.000156,2]
[420150794,1775728242754,-1066.870932,0.000156,2]
[420150795,1775728242764,-197.3045252,0.00015605,2]
[420150796,1775728242773,-1573.0,0.00015607,2]
[420150797,1775728242783,-500.0,0.00015609,2]
[420150798,1775728242799,-5376.15915227,0.00015609,2]
[420150799,1775728242808,-5376.15915226,0.00015609,2]
[420150800,1775728242820,-5376.15915226,0.00015609,2]
[420150801,1775728242830,-5376.15915226,0.0001561,2]
[420150802,1775728242841,-5376.15915226,0.0001561,2]
[420150803,1775728242850,-22220.59788102,0.0001561,2]
[420150804,1775728242860,-361.65150204,0.0001561,2]
[420150805,1775728242870,-12538.18350417,0.0001561,2]
[420150806,1775728242880,-944.55427638,0.0001561,2]
[420150807,1775728242890,-196.70783503,0.0001561,2]
[420150808,1775728242900,-1948.58327112,0.0001561,2]
[420150809,1775728242910,-696.93563576,0.0001561,2]
[420150810,1775728242921,-5376.15915226,0.0001561,2]
[420150811,1775728242931,-653.11021539,0.0001561,2]
[420150812,1775728242942,-2129.0,0.00015625,2]
[420150813,1775728242952,-855.71945347,0.00015634,2]
[420150814,1775728242962,-162.0,0.00015662,2]
[420150815,1775728242972,-500.0,0.0001567,2]
[420150816,1775728242982,-500.0,0.0001567,2]
[420150817,1775728242992,-500.0,0.0001567,2]
[420150818,1775728243002,-500.0,0.0001567,2]
[420150819,1775728243012,-1000.0,0.0001567,2]
[420150820,1775728243022,-1000.0,0.0001567,2]
[420150821,1775728243033,-1000.0,0.0001567,2]
[420150822,1775728243043,-1000.0,0.0001567,2]
[420150823,1775728243054,-1000.0,0.0001567,2]
[420150824,1775728243064,-1000.0,0.0001567,2]
[420150825,1775728243075,-500.0,0.0001567,2]
[420150826,1775728243086,-500.0,0.0001567,2]
[420150827,1775728243097,-151.0,0.00015672,2]
[420150828,1775728243107,-151.0,0.00015672,2]
[420150829,1775728243117,-151.0,0.00015672,2]
[420150830,1775728243127,-151.0,0.00015672,2]
[420150831,1775728243137,-44914.6293278,0.00015672,2]
[420150832,1775728243148,-161.604585,0.00015677,2]
[420150833,1775728243158,-1573.0,0.0001568,2]
[420150834,1775728243169,-1573.0,0.0001568,2]
[420150835,1775728243179,-1573.0,0.0001568,2]
[420150836,1775728243190,-162.0,0.0001568,2]
[420150837,1775728243200,-162.0,0.0001568,2]
[420150838,1775728243210,-427.87138688,0.000157,2]
[420150839,1775728243221,-500.0,0.000157,5]
[420150840,1775728243232,-333.85218546,0.000157,2]
[420150841,1775728243242,-333.85218546,0.000157,2]
[420150842,1775728243253,-513.05326966,0.00015708,2]
[420150843,1775728243263,-508.5252397,0.00015708,2]